[Event "Titled Tuesday Blitz March 21 Early 2023"]
[White "Zakhartsov, Vladimir"]
[Black "Devaev, Alexander"]
[WhiteFideId "4145097"]
[BlackFideId "4169395"]
[WhiteElo "2521"]
[BlackElo "2225"]
[Result "1-0"]
[Round "01"]
[TimeControl "180+2"]
[Date "2023.03.21"]
[WhiteClock "0:00:46"]
[BlackClock "0:00:09"]

1. d4 {[%clk 0:02:59]}  Nf6 {[%clk 0:02:59]} 2. c4 {[%clk 0:02:59]}  e6 {[%clk 0:03:00]} 3. Nf3 {[%clk 0:02:59]}  Bb4+ {[%clk 0:02:55]} 4. Nbd2 {[%clk 0:02:59]}  b6 {[%clk 0:02:55]} 5. g3 {[%clk 0:02:57]}  Bb7 {[%clk 0:02:54]} 6. Bg2 {[%clk 0:02:58]}  Ne4 {[%clk 0:02:40]} 7. O-O {[%clk 0:02:49]}  Nxd2 {[%clk 0:02:40]} 8. Bxd2 {[%clk 0:02:50]}  Bxd2 {[%clk 0:02:40]} 9. Qxd2 {[%clk 0:02:51]}  O-O {[%clk 0:02:38]} 10. d5 {[%clk 0:02:50]}  Na6 {[%clk 0:02:26]} 11. b4 {[%clk 0:02:41]}  Qe7 {[%clk 0:02:11]} 12. a3 {[%clk 0:02:39]}  d6 {[%clk 0:01:51]} 13. Nd4 {[%clk 0:02:31]}  e5 {[%clk 0:01:51]} 14. Nc6 {[%clk 0:02:31]}  Qd7 {[%clk 0:01:40]} 15. a4 {[%clk 0:02:31]}  Nb8 {[%clk 0:01:40]} 16. b5 {[%clk 0:02:23]}  a5 {[%clk 0:01:40]} 17. f4 {[%clk 0:02:20]}  exf4 {[%clk 0:01:28]} 18. Rxf4 {[%clk 0:02:10]}  Bc8 {[%clk 0:00:42]} 19. Raf1 {[%clk 0:01:53]}  f6 {[%clk 0:00:39]} 20. Rh4 {[%clk 0:01:45]}  Qf7 {[%clk 0:00:37]} 21. Be4 {[%clk 0:01:40]}  g6 {[%clk 0:00:37]} 22. Nd4 {[%clk 0:01:28]}  Re8 {[%clk 0:00:26]} 23. Ne6 {[%clk 0:01:18]}  Ra7 {[%clk 0:00:22]} 24. Qh6 {[%clk 0:01:14]}  Rxe6 {[%clk 0:00:19]} 25. dxe6 {[%clk 0:01:11]}  Bxe6 {[%clk 0:00:20]} 26. Rxf6 {[%clk 0:01:03]}  Qxf6 {[%clk 0:00:13]} 27. Qxh7+ {[%clk 0:01:03]}  Kf8 {[%clk 0:00:14]} 28. Rf4 {[%clk 0:01:03]}  Bf5 {[%clk 0:00:14]} 29. Bxf5 {[%clk 0:01:03]}  Qa1+ {[%clk 0:00:11]} 30. Bb1+ {[%clk 0:00:52]}  Ke8 {[%clk 0:00:12]} 31. Qg8+ {[%clk 0:00:45]}  Kd7 {[%clk 0:00:09]} 32. Rf7+ {[%clk 0:00:45]}  Ke6 {[%clk 0:00:10]} 33. Qxg6+ {[%clk 0:00:46]}  Ke5 {[%clk 0:00:09]} 34. Qf6# {[%clk 0:00:46]} 1-0


[Site "https://www.chess.com"]

[Event "Titled Tuesday Blitz March 21 Early 2023"]
[White "Hayrapetyan, Hovik"]
[Black "Dinu, Dumitru-Daniel"]
[WhiteFideId "13302639"]
[BlackFideId "1208403"]
[WhiteElo "2348"]
[BlackElo "2240"]
[Result "1-0"]
[Round "01"]
[TimeControl "180+2"]
[Date "2023.03.21"]
[WhiteClock "0:00:09"]
[BlackClock "0:00:07"]

1. d4 {[%clk 0:03:00]}  Nf6 {[%clk 0:02:59]} 2. c4 {[%clk 0:03:00]}  e6 {[%clk 0:02:58]} 3. Nc3 {[%clk 0:03:00]}  Bb4 {[%clk 0:02:58]} 4. Nf3 {[%clk 0:03:00]}  b6 {[%clk 0:02:57]} 5. Bd2 {[%clk 0:02:59]}  Bb7 {[%clk 0:02:55]} 6. g3 {[%clk 0:02:59]}  O-O {[%clk 0:02:55]} 7. Bg2 {[%clk 0:02:59]}  Nc6 {[%clk 0:02:50]} 8. O-O {[%clk 0:02:56]}  Bxc3 {[%clk 0:02:40]} 9. Bxc3 {[%clk 0:02:56]}  Ne4 {[%clk 0:02:41]} 10. Be1 {[%clk 0:02:55]}  f5 {[%clk 0:02:39]} 11. d5 {[%clk 0:02:51]}  Ne7 {[%clk 0:02:35]} 12. dxe6 {[%clk 0:02:43]}  dxe6 {[%clk 0:02:36]} 13. Qc2 {[%clk 0:02:43]}  c5 {[%clk 0:02:08]} 14. Ng5 {[%clk 0:02:22]}  Nxg5 {[%clk 0:01:57]} 15. Bxb7 {[%clk 0:02:22]}  Rb8 {[%clk 0:01:53]} 16. Bg2 {[%clk 0:02:22]}  Qc7 {[%clk 0:01:45]} 17. f4 {[%clk 0:02:17]}  Nf7 {[%clk 0:01:41]} 18. Bc3 {[%clk 0:02:17]}  Rbd8 {[%clk 0:01:39]} 19. b3 {[%clk 0:01:57]}  Rd7 {[%clk 0:01:31]} 20. Bb2 {[%clk 0:01:54]}  Nc6 {[%clk 0:01:12]} 21. Qc3 {[%clk 0:01:46]}  Nd4 {[%clk 0:01:00]} 22. Rfe1 {[%clk 0:01:44]}  Nd6 {[%clk 0:00:41]} 23. e3 {[%clk 0:01:36]}  Nc6 {[%clk 0:00:40]} 24. Rad1 {[%clk 0:01:25]}  Rfd8 {[%clk 0:00:35]} 25. Kf2 {[%clk 0:00:55]}  Ne4+ {[%clk 0:00:22]} 26. Bxe4 {[%clk 0:00:54]}  fxe4 {[%clk 0:00:23]} 27. Rxd7 {[%clk 0:00:20]}  Rxd7 {[%clk 0:00:23]} 28. a3 {[%clk 0:00:16]}  Rd3 {[%clk 0:00:23]} 29. Qc2 {[%clk 0:00:16]}  Qd7 {[%clk 0:00:22]} 30. Ke2 {[%clk 0:00:16]}  Ne7 {[%clk 0:00:09]} 31. g4 {[%clk 0:00:12]}  Ng6 {[%clk 0:00:05]} 32. Rd1 {[%clk 0:00:08]}  Rxd1 {[%clk 0:00:04]} 33. Qxd1 {[%clk 0:00:09]}  Qxd1+ {[%clk 0:00:04]} 34. Kxd1 {[%clk 0:00:10]}  Kf7 {[%clk 0:00:04]} 35. Bc3 {[%clk 0:00:09]}  Nf8 {[%clk 0:00:04]} 36. Be5 {[%clk 0:00:07]}  Nd7 {[%clk 0:00:03]} 37. Bd6 {[%clk 0:00:06]}  g6 {[%clk 0:00:03]} 38. h3 {[%clk 0:00:06]}  Kf6 {[%clk 0:00:04]} 39. Ke2 {[%clk 0:00:05]}  Kf7 {[%clk 0:00:02]} 40. Kf2 {[%clk 0:00:06]}  Kf6 {[%clk 0:00:02]} 41. Kg3 {[%clk 0:00:06]}  Kf7 {[%clk 0:00:03]} 42. b4 {[%clk 0:00:04]}  Kf6 {[%clk 0:00:01]} 43. b5 {[%clk 0:00:04]}  Kf7 {[%clk 0:00:01]} 44. a4 {[%clk 0:00:04]}  Kf6 {[%clk 0:00:01]} 45. Kh4 {[%clk 0:00:04]}  Kf7 {[%clk 0:00:01]} 46. Kg5 {[%clk 0:00:02]}  Kg7 {[%clk 0:00:02]} 47. Kh4 {[%clk 0:00:02]}  Kf6 {[%clk 0:00:01]} 48. Kg3 {[%clk 0:00:03]}  Kf7 {[%clk 0:00:02]} 49. h4 {[%clk 0:00:03]}  Kf6 {[%clk 0:00:02]} 50. h5 {[%clk 0:00:03]}  Kg7 {[%clk 0:00:01]} 51. Kh4 {[%clk 0:00:03]}  Kf6 {[%clk 0:00:01]} 52. h6 {[%clk 0:00:02]}  Kf7 {[%clk 0:00:01]} 53. Kg5 {[%clk 0:00:03]}  Ke8 {[%clk 0:00:01]} 54. f5 {[%clk 0:00:04]}  exf5 {[%clk 0:00:02]} 55. gxf5 {[%clk 0:00:05]}  Kf7 {[%clk 0:00:03]} 56. fxg6+ {[%clk 0:00:04]}  hxg6 {[%clk 0:00:03]} 57. Bf4 {[%clk 0:00:04]}  Nf8 {[%clk 0:00:03]} 58. Be5 {[%clk 0:00:04]}  Ne6+ {[%clk 0:00:03]} 59. Kg4 {[%clk 0:00:04]}  Kg8 {[%clk 0:00:04]} 60. Bb8 {[%clk 0:00:05]}  Kh7 {[%clk 0:00:04]} 61. Bxa7 {[%clk 0:00:05]}  Kxh6 {[%clk 0:00:05]} 62. Bxb6 {[%clk 0:00:06]}  Nf8 {[%clk 0:00:05]} 63. a5 {[%clk 0:00:06]}  Nd7 {[%clk 0:00:05]} 64. Bc7 {[%clk 0:00:07]}  Nf6+ {[%clk 0:00:04]} 65. Kh3 {[%clk 0:00:07]}  g5 {[%clk 0:00:05]} 66. a6 {[%clk 0:00:07]}  g4+ {[%clk 0:00:06]} 67. Kg2 {[%clk 0:00:08]}  Kg5 {[%clk 0:00:06]} 68. Bf4+ {[%clk 0:00:08]}  Kf5 {[%clk 0:00:07]} 69. a7 {[%clk 0:00:09]}  Nd7 {[%clk 0:00:07]} 70. a8=Q {[%clk 0:00:09]} 1-0


[Site "https://www.chess.com"]

[Event "Titled Tuesday Blitz March 21 Early 2023"]
[White "cryptoguru02"]
[Black "Sanal, Vahap"]
[BlackFideId "6300545"]
[WhiteElo "2434"]
[BlackElo "2606"]
[Result "0-1"]
[Round "01"]
[TimeControl "180+2"]
[Date "2023.03.21"]
[WhiteClock "0:00:03"]
[BlackClock "0:01:21"]

1. d4 {[%clk 0:03:00]}  d5 {[%clk 0:02:59]} 2. c4 {[%clk 0:03:00]}  c6 {[%clk 0:03:00]} 3. Nc3 {[%clk 0:02:59]}  Nf6 {[%clk 0:03:00]} 4. Nf3 {[%clk 0:03:00]}  e6 {[%clk 0:02:57]} 5. e3 {[%clk 0:02:59]}  Nbd7 {[%clk 0:02:57]} 6. Qc2 {[%clk 0:02:59]}  Bd6 {[%clk 0:02:58]} 7. b3 {[%clk 0:02:59]}  O-O {[%clk 0:02:58]} 8. Be2 {[%clk 0:02:58]}  b6 {[%clk 0:02:59]} 9. O-O {[%clk 0:02:58]}  Bb7 {[%clk 0:02:59]} 10. Bb2 {[%clk 0:02:57]}  Rc8 {[%clk 0:03:00]} 11. Rad1 {[%clk 0:02:43]}  Qe7 {[%clk 0:02:58]} 12. Rfe1 {[%clk 0:02:33]}  c5 {[%clk 0:02:52]} 13. Qb1 {[%clk 0:02:08]}  Rfd8 {[%clk 0:02:46]} 14. cxd5 {[%clk 0:02:06]}  exd5 {[%clk 0:02:36]} 15. dxc5 {[%clk 0:02:03]}  bxc5 {[%clk 0:02:34]} 16. Qf5 {[%clk 0:01:49]}  Qe6 {[%clk 0:02:26]} 17. Bd3 {[%clk 0:01:28]}  g6 {[%clk 0:02:15]} 18. Qg5 {[%clk 0:01:23]}  Be7 {[%clk 0:02:10]} 19. Qf4 {[%clk 0:00:59]}  Bd6 {[%clk 0:02:05]} 20. Qg5 {[%clk 0:00:59]}  Bf8 {[%clk 0:01:56]} 21. Qh4 {[%clk 0:00:51]}  Bg7 {[%clk 0:01:51]} 22. Bb1 {[%clk 0:00:45]}  h6 {[%clk 0:01:49]} 23. Na4 {[%clk 0:00:28]}  g5 {[%clk 0:01:45]} 24. Qg3 {[%clk 0:00:19]}  Nh5 {[%clk 0:01:45]} 25. Qh3 {[%clk 0:00:15]}  Qxh3 {[%clk 0:01:39]} 26. gxh3 {[%clk 0:00:16]}  Bxb2 {[%clk 0:01:33]} 27. Nxb2 {[%clk 0:00:17]}  Nhf6 {[%clk 0:01:33]} 28. Nd2 {[%clk 0:00:13]}  Ne5 {[%clk 0:01:31]} 29. Nd3 {[%clk 0:00:08]}  Nxd3 {[%clk 0:01:27]} 30. Bxd3 {[%clk 0:00:09]}  c4 {[%clk 0:01:27]} 31. bxc4 {[%clk 0:00:07]}  dxc4 {[%clk 0:01:28]} 32. Nxc4 {[%clk 0:00:06]}  Bf3 {[%clk 0:01:22]} 33. Rd2 {[%clk 0:00:03]}  Rxc4 {[%clk 0:01:22]} 34. Bxc4 {[%clk 0:00:04]}  Rxd2 {[%clk 0:01:22]} 35. a4 {[%clk 0:00:04]}  Ne4 {[%clk 0:01:22]} 36. Rb1 {[%clk 0:00:02]}  Rxf2 {[%clk 0:01:21]} 37. Rb8+ {[%clk 0:00:02]}  Kg7 {[%clk 0:01:21]} 38. Rb7 {[%clk 0:00:02]}  Rg2+ {[%clk 0:01:20]} 39. Kf1 {[%clk 0:00:03]}  Nd2+ {[%clk 0:01:21]} 40. Ke1 {[%clk 0:00:03]}  Bxb7 {[%clk 0:01:21]} 0-1


[Site "https://www.chess.com"]

[Event "Titled Tuesday Blitz March 21 Early 2023"]
[White "Sattarov, Bobir"]
[Black "Yeritsyan, Hayk"]
[WhiteFideId "14203081"]
[BlackFideId "13307320"]
[WhiteElo "2351"]
[BlackElo "2423"]
[Result "1-0"]
[Round "01"]
[TimeControl "180+2"]
[Date "2023.03.21"]
[WhiteClock "0:02:38"]
[BlackClock "0:01:29"]

1. e4 {[%clk 0:03:00]}  e5 {[%clk 0:02:54]} 2. Nf3 {[%clk 0:02:59]}  Nc6 {[%clk 0:02:54]} 3. Nc3 {[%clk 0:02:58]}  Nf6 {[%clk 0:02:53]} 4. a3 {[%clk 0:02:58]}  d5 {[%clk 0:02:47]} 5. Bb5 {[%clk 0:02:58]}  dxe4 {[%clk 0:02:24]} 6. Nxe5 {[%clk 0:02:56]}  Qd6 {[%clk 0:02:20]} 7. d4 {[%clk 0:02:54]}  Bf5 {[%clk 0:02:07]} 8. Bf4 {[%clk 0:02:50]}  Nd5 {[%clk 0:01:37]} 9. Nxd5 {[%clk 0:02:40]}  Qxd5 {[%clk 0:01:38]} 10. Bc4 {[%clk 0:02:39]}  Qxd4 {[%clk 0:01:29]} 11. Bxf7+ {[%clk 0:02:38]} 1-0


[Site "https://www.chess.com"]

[Event "Titled Tuesday Blitz March 21 Early 2023"]
[White "Jimenez Jimenez, Leandro"]
[Black "Galchenko, Matvey"]
[WhiteFideId "6415253"]
[BlackFideId "24175480"]
[WhiteElo "2263"]
[BlackElo "2404"]
[Result "0-1"]
[Round "01"]
[TimeControl "180+2"]
[Date "2023.03.21"]
[WhiteClock "0:00:05"]
[BlackClock "0:00:24"]

1. d4 {[%clk 0:02:58]}  d5 {[%clk 0:02:53]} 2. c4 {[%clk 0:02:57]}  e6 {[%clk 0:02:53]} 3. Nc3 {[%clk 0:02:55]}  c6 {[%clk 0:02:53]} 4. Nf3 {[%clk 0:02:54]}  dxc4 {[%clk 0:02:50]} 5. a4 {[%clk 0:02:53]}  Bb4 {[%clk 0:02:48]} 6. e3 {[%clk 0:02:53]}  b5 {[%clk 0:02:47]} 7. Bd2 {[%clk 0:02:50]}  a5 {[%clk 0:02:45]} 8. axb5 {[%clk 0:02:45]}  Bxc3 {[%clk 0:02:45]} 9. Bxc3 {[%clk 0:02:45]}  cxb5 {[%clk 0:02:45]} 10. b3 {[%clk 0:02:46]}  Bb7 {[%clk 0:02:45]} 11. bxc4 {[%clk 0:02:45]}  b4 {[%clk 0:02:45]} 12. Bb2 {[%clk 0:02:46]}  Nf6 {[%clk 0:02:45]} 13. Bd3 {[%clk 0:02:46]}  Nbd7 {[%clk 0:02:45]} 14. O-O {[%clk 0:02:46]}  O-O {[%clk 0:02:46]} 15. Nd2 {[%clk 0:02:47]}  Qc7 {[%clk 0:02:46]} 16. Qe2 {[%clk 0:02:46]}  a4 {[%clk 0:02:40]} 17. d5 {[%clk 0:01:50]}  exd5 {[%clk 0:01:42]} 18. Rac1 {[%clk 0:01:34]}  Qd6 {[%clk 0:01:36]} 19. cxd5 {[%clk 0:01:29]}  Qxd5 {[%clk 0:01:33]} 20. e4 {[%clk 0:01:26]}  Qg5 {[%clk 0:01:29]} 21. f4 {[%clk 0:01:23]}  Qg4 {[%clk 0:01:29]} 22. Qxg4 {[%clk 0:01:16]}  Nxg4 {[%clk 0:01:29]} 23. Rc7 {[%clk 0:01:16]}  Rfd8 {[%clk 0:01:18]} 24. Rxb7 {[%clk 0:01:07]}  Nc5 {[%clk 0:01:18]} 25. Rxb4 {[%clk 0:00:59]}  Nxd3 {[%clk 0:01:18]} 26. Rb7 {[%clk 0:00:56]}  a3 {[%clk 0:01:12]} 27. Ba1 {[%clk 0:00:51]}  Ne3 {[%clk 0:01:11]} 28. Rfb1 {[%clk 0:00:47]}  a2 {[%clk 0:01:11]} 29. R1b3 {[%clk 0:00:31]}  Nc2 {[%clk 0:01:11]} 30. Bc3 {[%clk 0:00:13]}  a1=Q+ {[%clk 0:01:11]} 31. Bxa1 {[%clk 0:00:12]}  Rxa1+ {[%clk 0:01:12]} 32. Rb1 {[%clk 0:00:10]}  Nc5 {[%clk 0:01:09]} 33. Rxa1 {[%clk 0:00:08]}  Nxb7 {[%clk 0:01:05]} 34. Rb1 {[%clk 0:00:06]}  Nc5 {[%clk 0:01:00]} 35. e5 {[%clk 0:00:05]}  h5 {[%clk 0:00:59]} 36. Nf3 {[%clk 0:00:05]}  Ne3 {[%clk 0:00:57]} 37. h3 {[%clk 0:00:05]}  Nd3 {[%clk 0:00:52]} 38. Rb7 {[%clk 0:00:05]}  Nxf4 {[%clk 0:00:52]} 39. Ng5 {[%clk 0:00:05]}  Nfxg2 {[%clk 0:00:42]} 40. Nxf7 {[%clk 0:00:04]}  Re8 {[%clk 0:00:41]} 41. Kf2 {[%clk 0:00:02]}  h4 {[%clk 0:00:32]} 42. Kf3 {[%clk 0:00:03]}  Ra8 {[%clk 0:00:22]} 43. e6 {[%clk 0:00:02]}  Re8 {[%clk 0:00:17]} 44. Ng5 {[%clk 0:00:02]}  Rf8+ {[%clk 0:00:17]} 45. Ke4 {[%clk 0:00:02]}  Nc4 {[%clk 0:00:15]} 46. Kd5 {[%clk 0:00:02]}  Nge3+ {[%clk 0:00:15]} 47. Kd4 {[%clk 0:00:02]}  Rd8+ {[%clk 0:00:15]} 48. Ke4 {[%clk 0:00:02]}  Nd6+ {[%clk 0:00:15]} 49. Kxe3 {[%clk 0:00:02]}  Nxb7 {[%clk 0:00:16]} 50. Kf4 {[%clk 0:00:02]}  Re8 {[%clk 0:00:15]} 51. Kg4 {[%clk 0:00:02]}  Nd8 {[%clk 0:00:16]} 52. Kf5 {[%clk 0:00:02]}  Nxe6 {[%clk 0:00:16]} 53. Nxe6 {[%clk 0:00:02]}  Kf7 {[%clk 0:00:16]} 54. Ng5+ {[%clk 0:00:03]}  Ke7 {[%clk 0:00:16]} 55. Kg4 {[%clk 0:00:03]}  Rh8 {[%clk 0:00:16]} 56. Nf3 {[%clk 0:00:03]}  Kf6 {[%clk 0:00:17]} 57. Nxh4 {[%clk 0:00:03]}  Ra8 {[%clk 0:00:18]} 58. Nf3 {[%clk 0:00:03]}  Ra4+ {[%clk 0:00:18]} 59. Kg3 {[%clk 0:00:03]}  Kf5 {[%clk 0:00:19]} 60. Nh4+ {[%clk 0:00:03]}  Ke4 {[%clk 0:00:20]} 61. Ng6 {[%clk 0:00:03]}  Kf5 {[%clk 0:00:19]} 62. Nh4+ {[%clk 0:00:03]}  Kg5 {[%clk 0:00:19]} 63. Nf3+ {[%clk 0:00:04]}  Kh5 {[%clk 0:00:20]} 64. Nh2 {[%clk 0:00:04]}  Ra3+ {[%clk 0:00:21]} 65. Nf3 {[%clk 0:00:04]}  Rb3 {[%clk 0:00:20]} 66. Kg2 {[%clk 0:00:04]}  Kg6 {[%clk 0:00:21]} 67. Kg3 {[%clk 0:00:05]}  Kf5 {[%clk 0:00:21]} 68. Kf2 {[%clk 0:00:03]}  Kf4 {[%clk 0:00:21]} 69. Ng1 {[%clk 0:00:02]}  Rb2+ {[%clk 0:00:21]} 70. Ne2+ {[%clk 0:00:03]}  Ke4 {[%clk 0:00:22]} 71. Ke1 {[%clk 0:00:02]}  Ke3 {[%clk 0:00:22]} 72. Nc1 {[%clk 0:00:01]}  Rh2 {[%clk 0:00:23]} 73. Kd1 {[%clk 0:00:02]}  Rxh3 {[%clk 0:00:23]} 74. Kc2 {[%clk 0:00:03]}  g5 {[%clk 0:00:22]} 75. Nb3 {[%clk 0:00:02]}  g4 {[%clk 0:00:22]} 76. Nc5 {[%clk 0:00:03]}  g3 {[%clk 0:00:22]} 77. Ne6 {[%clk 0:00:03]}  g2 {[%clk 0:00:22]} 78. Ng5 {[%clk 0:00:03]}  Rg3 {[%clk 0:00:22]} 79. Nh3 {[%clk 0:00:03]}  Rxh3 {[%clk 0:00:23]} 80. Kb3 {[%clk 0:00:03]}  g1=Q {[%clk 0:00:23]} 81. Ka4 {[%clk 0:00:04]}  Qb1 {[%clk 0:00:23]} 82. Ka3 {[%clk 0:00:04]}  Rh2 {[%clk 0:00:23]} 83. Ka4 {[%clk 0:00:05]}  Ra2# {[%clk 0:00:24]} 0-1


[Site "https://www.chess.com"]

[Event "Titled Tuesday Blitz March 21 Early 2023"]
[White "Albornoz Cabrera, Carlos Daniel"]
[Black "Grot, Blazej"]
[WhiteFideId "3518736"]
[BlackFideId "21835845"]
[WhiteElo "2501"]
[BlackElo "1823"]
[Result "1/2-1/2"]
[Round "01"]
[TimeControl "180+2"]
[Date "2023.03.21"]
[WhiteClock "0:00:14"]
[BlackClock "0:00:18"]

1. d4 {[%clk 0:03:00]}  Nf6 {[%clk 0:02:59]} 2. c4 {[%clk 0:03:00]}  g6 {[%clk 0:02:56]} 3. Nc3 {[%clk 0:02:59]}  d5 {[%clk 0:02:54]} 4. Nf3 {[%clk 0:02:59]}  Bg7 {[%clk 0:02:49]} 5. Qb3 {[%clk 0:02:59]}  dxc4 {[%clk 0:02:48]} 6. Qxc4 {[%clk 0:02:59]}  Be6 {[%clk 0:02:44]} 7. Qa4+ {[%clk 0:02:52]}  Bd7 {[%clk 0:02:44]} 8. Qb3 {[%clk 0:02:52]}  c5 {[%clk 0:02:43]} 9. dxc5 {[%clk 0:02:48]}  Na6 {[%clk 0:02:42]} 10. Be3 {[%clk 0:02:34]}  Qa5 {[%clk 0:02:33]} 11. Ne5 {[%clk 0:02:24]}  O-O {[%clk 0:02:26]} 12. Nc4 {[%clk 0:02:23]}  Qc7 {[%clk 0:02:17]} 13. Rc1 {[%clk 0:02:09]}  Nxc5 {[%clk 0:02:16]} 14. Bxc5 {[%clk 0:02:09]}  Qxc5 {[%clk 0:02:13]} 15. e3 {[%clk 0:02:10]}  Be6 {[%clk 0:02:04]} 16. Qb5 {[%clk 0:02:03]}  Rfc8 {[%clk 0:01:57]} 17. Qxc5 {[%clk 0:01:59]}  Rxc5 {[%clk 0:01:58]} 18. Nd2 {[%clk 0:01:50]}  Nd5 {[%clk 0:01:57]} 19. Nde4 {[%clk 0:01:49]}  Ra5 {[%clk 0:01:46]} 20. a3 {[%clk 0:01:43]}  Rc8 {[%clk 0:01:39]} 21. Kd2 {[%clk 0:01:37]}  f5 {[%clk 0:01:32]} 22. Ng5 {[%clk 0:01:33]}  Nxc3 {[%clk 0:01:29]} 23. bxc3 {[%clk 0:01:30]}  Ba2 {[%clk 0:01:21]} 24. c4 {[%clk 0:00:57]}  Rxa3 {[%clk 0:01:19]} 25. Ne6 {[%clk 0:00:55]}  Bb2 {[%clk 0:01:10]} 26. Rc2 {[%clk 0:00:54]}  Bf6 {[%clk 0:01:07]} 27. Bd3 {[%clk 0:00:50]}  Rc6 {[%clk 0:01:03]} 28. Nd4 {[%clk 0:00:49]}  Rd6 {[%clk 0:00:58]} 29. Ra1 {[%clk 0:00:43]}  Bxd4 {[%clk 0:00:57]} 30. exd4 {[%clk 0:00:41]}  Rxd4 {[%clk 0:00:58]} 31. Rc3 {[%clk 0:00:42]}  Ra6 {[%clk 0:00:51]} 32. c5 {[%clk 0:00:36]}  Bc4 {[%clk 0:00:42]} 33. Rxc4 {[%clk 0:00:32]}  Rxd3+ {[%clk 0:00:42]} 34. Kxd3 {[%clk 0:00:32]}  Rxa1 {[%clk 0:00:42]} 35. Rb4 {[%clk 0:00:32]}  Rd1+ {[%clk 0:00:35]} 36. Kc4 {[%clk 0:00:30]}  b6 {[%clk 0:00:32]} 37. cxb6 {[%clk 0:00:23]}  axb6 {[%clk 0:00:33]} 38. Kc3 {[%clk 0:00:19]}  Rg1 {[%clk 0:00:30]} 39. g3 {[%clk 0:00:15]}  Rg2 {[%clk 0:00:29]} 40. Rb2 {[%clk 0:00:15]}  Rxh2 {[%clk 0:00:29]} 41. Kd4 {[%clk 0:00:15]}  Kf7 {[%clk 0:00:28]} 42. Ke5 {[%clk 0:00:16]}  h5 {[%clk 0:00:27]} 43. Kf4 {[%clk 0:00:15]}  h4 {[%clk 0:00:27]} 44. g4 {[%clk 0:00:11]}  fxg4 {[%clk 0:00:19]} 45. Kxg4 {[%clk 0:00:12]}  h3 {[%clk 0:00:17]} 46. Kg3 {[%clk 0:00:12]}  Rh1 {[%clk 0:00:18]} 47. Rxb6 {[%clk 0:00:12]}  h2 {[%clk 0:00:18]} 48. Kg2 {[%clk 0:00:12]}  Rg1+ {[%clk 0:00:18]} 49. Kxh2 {[%clk 0:00:12]}  Rf1 {[%clk 0:00:18]} 50. Kg3 {[%clk 0:00:13]}  Rd1 {[%clk 0:00:18]} 51. Rb4 {[%clk 0:00:12]}  Rd5 {[%clk 0:00:18]} 52. Rf4+ {[%clk 0:00:12]}  Rf5 {[%clk 0:00:19]} 53. Ra4 {[%clk 0:00:13]}  Kf6 {[%clk 0:00:18]} 54. f3 {[%clk 0:00:13]}  Kf7 {[%clk 0:00:18]} 55. Ra6 {[%clk 0:00:13]}  Rf6 {[%clk 0:00:17]} 56. Ra7 {[%clk 0:00:14]}  Rf5 {[%clk 0:00:17]} 57. Ra6 {[%clk 0:00:14]}  Rf6 {[%clk 0:00:18]} 58. Ra4 {[%clk 0:00:14]}  Rf5 {[%clk 0:00:18]} 59. Ra6 {[%clk 0:00:14]} 1/2-1/2


[Site "https://www.chess.com"]